fUSD/lending_fUSD_20240125
["ID","MTS","AMOUNT","RATE_DAILY","PERIOD"]
[312777555,1706208640177,-150.0,0.0005578,120]
[312777558,1706208640186,-151.50764608,0.0005578,22]
[312777559,1706208640196,-151.50764608,0.0005578,20]
[312777562,1706208640205,-151.50764608,0.0005578,22]
[312777564,1706208640214,-55555.0,0.0005579,5]
[312777566,1706208640223,-11806.75,0.000558,30]
[312777568,1706208640232,-152.0,0.000558,120]
[312777570,1706208640242,-500.0,0.00055889,2]
[312777572,1706208640251,-500.0,0.0005589,120]
[312777574,1706208640260,-500.0,0.0005589,120]
[312777576,1706208640269,-500.0,0.0005589,120]
[312777578,1706208640279,-500.0,0.0005589,120]
[312777580,1706208640288,-500.0,0.0005589,120]
[312777582,1706208640297,-500.0,0.0005589,120]
[312777584,1706208640306,-500.0,0.0005589,120]
[312777586,1706208640317,-500.0,0.0005589,120]
[312777587,1706208640327,-500.0,0.0005589,120]
[312777589,1706208640339,-500.0,0.0005589,120]
[312777591,1706208640348,-500.0,0.0005589,120]
[312777594,1706208640357,-500.0,0.0005589,120]
[312777596,1706208640366,-600.0,0.0005589,120]
[312777598,1706208640375,-350.95,0.0005589,120]
[312777599,1706208640383,-500.0,0.0005589,120]
[312777602,1706208640394,-502.49807405,0.0005589,120]
[312777603,1706208640403,-500.0,0.0005589,7]
[312777605,1706208640413,-500.0,0.0005589,120]
[312777607,1706208640423,-500.0,0.0005589,120]
[312777609,1706208640432,-500.0,0.0005589,120]
[312777611,1706208640441,-150.0,0.0005589,120]
[312777613,1706208640450,-511.75,0.0005589,120]
[312777616,1706208640460,-500.0,0.0005589,120]
[312777617,1706208640469,-500.0,0.0005589,120]
[312777619,1706208640478,-500.0,0.0005589,120]
[312777622,1706208640487,-500.0,0.0005589,120]
[312777624,1706208640496,-500.0,0.0005589,120]
[312777626,1706208640506,-500.0,0.0005589,120]
[312777628,1706208640518,-500.0,0.0005589,120]
[312777629,1706208640527,-932.15,0.0005589,120]
[312777630,1706208640536,-500.0,0.0005589,120]
[312777631,1706208640545,-500.0,0.0005589,120]
[312777632,1706208640554,-500.0,0.0005589,120]
[312777633,1706208640564,-500.0,0.0005589,120]
[312777634,1706208640573,-500.0,0.0005589,120]
[312777635,1706208640582,-500.0,0.0005589,120]
[312777636,1706208640592,-748.06,0.0005589,120]
[312777638,1706208640601,-655.9,0.0005589,5]
[312777640,1706208640612,-500.0,0.0005589,120]
[312777642,1706208640621,-500.0,0.0005589,120]
[312777644,1706208640630,-500.0,0.0005589,120]
[312777645,1706208640639,-500.0,0.0005589,120]
[312777647,1706208640648,-581.76,0.0005589,120]
[312777650,1706208640658,-500.0,0.0005589,120]
[312777651,1706208640666,-500.0,0.0005589,20]
[312777653,1706208640676,-500.0,0.0005589,120]
[312777656,1706208640686,-177.12161533,0.0005589,120]
[312777658,1706208640696,-500.0,0.0005589,2]
[312777659,1706208640705,-500.0,0.0005589,120]
[312777661,1706208640714,-500.0,0.0005589,120]
[312777664,1706208640723,-500.0,0.0005589,120]
[312777666,1706208640733,-856.45,0.0005589,120]
[312777668,1706208640742,-500.0,0.0005589,120]
[312777669,1706208640750,-500.0,0.0005589,120]
[312777672,1706208640759,-500.0,0.0005589,120]
[312777674,1706208640769,-500.0,0.0005589,120]
[312777675,1706208640778,-500.0,0.0005589,120]
[312777677,1706208640788,-500.0,0.0005589,120]
[312777680,1706208640797,-500.0,0.0005589,120]
[312777681,1706208640806,-500.0,0.0005589,2]
[312777683,1706208640815,-500.0,0.0005589,120]
[312777685,1706208640826,-449.00693953,0.0005589,120]
[312777687,1706208640836,-500.0,0.0005589,120]
[312777689,1706208640845,-500.0,0.0005589,120]
[312777691,1706208640855,-504.16901267,0.00056093,30]
[312777693,1706208640864,-1443.00195714,0.00056095,34]
[312777696,1706208640873,-1029.86,0.00056203,120]
[312777697,1706208640882,-800.0,0.00056209,120]
[312777700,1706208640891,-733.0,0.0005629,2]
[312777702,1706208640901,-190.0,0.0005629,2]
[312777703,1706208640912,-479.0,0.000563,30]
[312777705,1706208640922,-152.0,0.00056312,3]
[312777708,1706208640933,-151.50764608,0.00056333,22]
[312777710,1706208640942,-19406.2375,0.00056343,2]
[312777711,1706208640951,-14910.0173,0.00056343,2]
[312777713,1706208640961,-281.28534164,0.00056407,4]
[312777715,1706208640971,-155.0,0.00056407,4]
[312777718,1706208640980,-11782.39319426,0.00056409,4]
[312777720,1706208640989,-500.0,0.00056437,2]
[312777721,1706208640998,-500.0,0.00056438,120]
[312777723,1706208641008,-500.0,0.00056438,120]
[312777726,1706208641017,-526.5,0.00056438,120]
[312777727,1706208641027,-500.0,0.00056438,120]
[312777729,1706208641036,-500.0,0.00056438,120]
[312777731,1706208641046,-500.0,0.00056438,120]
[312777733,1706208641055,-500.0,0.00056438,120]
[312777735,1706208641064,-500.0,0.00056438,120]
[312777737,1706208641074,-500.0,0.00056438,120]
[312777739,1706208641083,-500.0,0.00056438,120]
[312777741,1706208641092,-500.0,0.00056438,120]
[312777743,1706208641101,-500.0,0.00056438,120]
[312777745,1706208641110,-600.0,0.00056438,120]
[312777747,1706208641119,-500.0,0.00056438,120]
[312777749,1706208641129,-500.0,0.00056438,7]
[312777751,1706208641138,-500.0,0.00056438,120]
[312777753,1706208641147,-500.0,0.00056438,120]
[312777755,1706208641157,-211.38994387,0.00056438,120]
[312777757,1706208641166,-208.78155564,0.00056438,120]
[312777759,1706208641175,-511.75,0.00056438,120]
[312777761,1706208641184,-500.0,0.00056438,120]
[312777763,1706208641193,-500.0,0.00056438,120]
[312777765,1706208641202,-500.0,0.00056438,120]
[312777767,1706208641211,-500.0,0.00056438,120]
[312777769,1706208641220,-500.0,0.00056438,120]
[312777771,1706208641230,-500.0,0.00056438,120]
[312777773,1706208641239,-500.0,0.00056438,120]
[312777775,1706208641248,-932.15,0.00056438,120]
[312777777,1706208641257,-500.0,0.00056438,120]
[312777779,1706208641266,-500.0,0.00056438,120]
[312777781,1706208641275,-500.0,0.00056438,120]
[312777783,1706208641284,-500.0,0.00056438,120]
[312777785,1706208641293,-500.0,0.00056438,120]
[312777787,1706208641303,-500.0,0.00056438,120]
[312777789,1706208641311,-748.06,0.00056438,120]
[312777791,1706208641320,-655.9,0.00056438,5]
[312777793,1706208641329,-500.0,0.00056438,120]
[312777795,1706208641340,-500.0,0.00056438,120]
[312777797,1706208641349,-500.0,0.00056438,120]
[312777799,1706208641357,-500.0,0.00056438,120]
[312777801,1706208641367,-581.76,0.00056438,120]
[312777803,1706208641376,-500.0,0.00056438,120]
[312777805,1706208641385,-500.0,0.00056438,20]
[312777807,1706208641394,-500.0,0.00056438,120]
[312777809,1706208641403,-500.0,0.00056438,2]
[312777811,1706208641413,-500.0,0.00056438,120]
[312777813,1706208641422,-500.0,0.00056438,120]
[312777815,1706208641430,-500.0,0.00056438,120]
[312777817,1706208641439,-856.45,0.00056438,120]
[312777819,1706208641448,-500.0,0.00056438,120]
[312777821,1706208641457,-500.0,0.00056438,120]
[312777823,1706208641466,-500.0,0.00056438,120]
[312777825,1706208641475,-500.0,0.00056438,120]
[312777826,1706208641485,-500.0,0.00056438,120]
[312777827,1706208641494,-500.0,0.00056438,120]
[312777828,1706208641504,-500.0,0.00056438,120]
[312777830,1706208641517,-500.0,0.00056438,2]
[312777831,1706208641526,-500.0,0.00056438,120]
[312777832,1706208641535,-500.0,0.00056438,120]
[312777833,1706208641544,-500.0,0.00056438,120]
[312777834,1706208641553,-350.0,0.00056464,120]
[312777835,1706208641562,-1443.00195714,0.00056501,34]
[312777836,1706208641571,-15405.0,0.0005689,2]
[312777837,1706208641580,-3996.0,0.0005689,2]
[312777838,1706208641593,-152.0,0.000569,120]
[312777839,1706208641602,-1443.00195714,0.00056906,35]
[312777840,1706208641614,-2153.39801,0.00056919,82]
[312777841,1706208641624,-151.50764608,0.00056948,19]
[312777842,1706208641633,-151.50764608,0.00056948,18]
[312777844,1706208641643,-151.50764608,0.00056948,20]
[312777846,1706208641652,-419.11443701,0.0005695,4]
[312777847,1706208641662,-504.16901267,0.00056962,30]
[312777848,1706208641671,-4885.29235048,0.00056976,4]
[312777849,1706208641681,-913.35829636,0.00056976,4]
[312777850,1706208641690,-321.22328122,0.00056976,2]
[312777851,1706208641700,-376.78302695,0.00056977,4]
[312777852,1706208641709,-385.5449845,0.00056977,4]
[312777853,1706208641718,-1256.24889353,0.00056977,4]
[312777854,1706208641866,-155.0,0.00056977,4]
[312777855,1706208641875,-698.04764279,0.00056977,4]
[312777856,1706208641884,-1485.51430148,0.00056977,4]
[312777857,1706208641893,-23651.41169489,0.00056977,4]
[312777858,1706208641902,-155.22013602,0.00056978,2]
[312777859,1706208641911,-3619.12864015,0.00056978,4]
[312777860,1706208641921,-3445.88486767,0.00056978,4]
[312777861,1706208641930,-1000.0,0.00056979,30]
[312777862,1706208641939,-155.11987022,0.00056979,4]
[312777863,1706208641948,-580238.09104263,0.00056979,2]
[312777864,1706208641998,-1059.53492,0.00056979,2]
[312777865,1706208642017,-3704.41060687,0.00056979,2]
[312777866,1706208642029,-290.51039745,0.00056979,2]
[312777867,1706208642136,-4129.46494753,0.00049743,21]
[312777868,1706208642148,-1364.97814077,0.00049743,21]
[312777869,1706208642157,-13087.11140041,0.00056979,2]
[312777870,1706208642169,-1689.95371135,0.00056979,2]
[312777871,1706208642180,-387.72733961,0.00056979,2]
[312777872,1706208642191,-1311.43470725,0.00056979,2]
[312777873,1706208642203,-2995.14041374,0.00056979,2]
[312777874,1706208642214,-263.703,0.00056979,2]
[312777890,1706208642472,-2624.92727487,0.000448,6]
[312777891,1706208642482,-13417.89184471,0.00056979,2]
[312777893,1706208642536,-439.02399372,0.00056979,2]
[312777894,1706208642603,-920.88836545,0.00056979,2]
[312777895,1706208642619,-497.47766596,0.00056979,2]
[312777896,1706208642665,-293.51421104,0.00056979,2]
[312777897,1706208642729,-756.909999,0.00056979,2]
[312777898,1706208642740,-587.09626515,0.00056979,2]
[312777899,1706208642802,-1612.02209916,0.00056979,2]
[312778183,1706208645560,-610.29126095,0.00024573,2]
[312778186,1706208645571,-185.05109231,0.00049742,4]
[312778188,1706208645580,-1000.0,0.00049742,4]
[312778190,1706208645592,-500.0,0.00054794,120]
[312778192,1706208645601,-500.0,0.00054794,120]
[312778194,1706208645610,-250.0,0.00054942,120]
[312778196,1706208645622,-500.0,0.00055342,120]
[312778199,1706208645631,-500.0,0.00055342,120]
[312778201,1706208645640,-500.0,0.0005589,120]
[312778203,1706208645649,-1065.95843845,0.00056979,2]
[312778205,1706208645661,-8411.75000003,0.00056979,2]
[312778208,1706208645680,-408.4947162,0.0003,2]
[312778210,1706208645689,-9061.93233345,0.00056979,2]
[312778212,1706208645700,-930.29678312,0.00056979,2]
[312778214,1706208645711,-277.00956143,0.00056979,2]
[312778216,1706208645722,-2718.69916384,0.00056979,2]
[312778218,1706208645733,-943.6300854,0.00056979,2]
[312778224,1706208645779,-26590.72363428,0.00056979,2]
[312778227,1706208645789,-271861.370676,0.00056979,2]
[312778229,1706208645797,-313.5325998,0.00056979,4]
[312778231,1706208645806,-207.78272895,0.00056979,4]
[312778233,1706208645815,-209.21422491,0.00056979,4]
[312778235,1706208645824,-155.5919666,0.00056979,4]
[312778237,1706208645834,-333.87954227,0.00056979,4]
[312778238,1706208645843,-6439.8794207,0.00056979,4]
[312778241,1706208645852,-204.38101367,0.00056979,4]
[312778243,1706208645861,-246.31239322,0.00056979,4]
[312778245,1706208645871,-160.99807622,0.00056979,4]
[312778247,1706208645879,-400.0,0.00056979,2]
[312778248,1706208645888,-4483.71812932,0.00056979,7]
[312778251,1706208645897,-206.73159676,0.00056979,4]
[312778252,1706208645906,-1009.55503212,0.00056979,4]
[312778254,1706208645915,-1474.84336839,0.00056979,2]
[312778256,1706208645924,-157.39865583,0.00056979,4]
[312778258,1706208645933,-1956.89182349,0.00056979,4]
[312778260,1706208645942,-1828.75113108,0.0005698,4]
[312778262,1706208645951,-1046.3997283,0.0005698,4]
[312778264,1706208645960,-500.0,0.00056985,2]
[312778266,1706208645969,-500.0,0.00056986,120]
[312778268,1706208645978,-500.0,0.00056986,120]
[312778270,1706208645987,-500.0,0.00056986,120]
[312778273,1706208645997,-571.27333625,0.00056986,120]
[312778274,1706208646006,-500.0,0.00056986,120]
[312778276,1706208646015,-500.0,0.00056986,120]
[312778278,1706208646024,-500.0,0.00056986,120]
[312778280,1706208646033,-500.0,0.00056986,120]
[312778282,1706208646042,-500.0,0.00056986,120]
[312778285,1706208646052,-392.8740019,0.00056986,120]
[312778288,1706208646061,-500.0,0.00056986,120]
[312778292,1706208646070,-500.0,0.00056986,7]
[312778295,1706208646079,-631.0508067,0.00056986,120]
[312778299,1706208646089,-500.0,0.00056986,120]
[312778303,1706208646098,-511.75,0.00056986,120]
[312778306,1706208646108,-500.0,0.00056986,120]
[312778309,1706208646116,-500.0,0.00056986,120]
[312778312,1706208646125,-500.0,0.00056986,120]
[312778315,1706208646135,-500.0,0.00056986,120]
[312778317,1706208646144,-500.0,0.00056986,120]
[312778320,1706208646153,-500.0,0.00056986,120]
[312778323,1706208646162,-500.0,0.00056986,120]
[312778325,1706208646171,-932.15,0.00056986,120]
[312778328,1706208646180,-500.0,0.00056986,120]
[312778332,1706208646190,-500.0,0.00056986,120]
[312778334,1706208646198,-500.0,0.00056986,120]
[312778337,1706208646207,-500.0,0.00056986,120]
[312778340,1706208646216,-500.0,0.00056986,120]
[312778343,1706208646226,-500.0,0.00056986,120]
[312778346,1706208646235,-748.06,0.00056986,120]
[312778349,1706208646244,-655.9,0.00056986,5]
[312778352,1706208646254,-500.0,0.00056986,120]
[312778356,1706208646263,-329.85374138,0.00056986,120]
[312778358,1706208646273,-500.0,0.00056986,120]
[312778361,1706208646283,-500.0,0.00056986,120]
[312778364,1706208646292,-581.76,0.00056986,120]
[312778366,1706208646300,-500.0,0.00056986,120]
[312778368,1706208646309,-500.0,0.00056986,20]
[312778370,1706208646318,-236.47,0.00056986,120]
[312778371,1706208646327,-500.0,0.00056986,2]
[312778374,1706208646338,-500.0,0.00056986,120]
[312778376,1706208646347,-340.46349955,0.00056986,120]
[312778379,1706208646357,-500.0,0.00056986,120]
[312778383,1706208646366,-856.45,0.00056986,120]
[312778386,1706208646375,-637.67246403,0.00056986,120]
[312778388,1706208646385,-500.0,0.00056986,120]
[312778392,1706208646394,-500.0,0.00056986,120]
[312778394,1706208646404,-500.0,0.00056986,120]
[312778397,1706208646413,-500.0,0.00056986,120]
[312778400,1706208646422,-500.0,0.00056986,120]
[312778403,1706208646431,-500.0,0.00056986,120]
[312778406,1706208646440,-500.0,0.00056986,2]
[312778409,1706208646449,-500.0,0.00056986,120]
[312778412,1706208646458,-500.0,0.00056986,120]
[312778415,1706208646467,-500.0,0.00056986,120]
[312778418,1706208646476,-483.4143355,0.00057,120]
[312778420,1706208646485,-400.0,0.00057,120]
[312778423,1706208646494,-722739.6309959,0.00057,20]
[312778426,1706208646503,-155.0,0.00057012,4]
[312778429,1706208646513,-11806.75,0.000571,30]
[312778432,1706208646523,-8998.0,0.0005719,2]
[312778435,1706208646532,-2334.0,0.0005719,2]
[312778438,1706208646542,-555.8906045,0.00057243,14]
[312778441,1706208646552,-160.61164061,0.00057296,2]
[312778444,1706208646562,-450.14648634,0.00057298,2]
[312778448,1706208646571,-128421.73883826,0.00057299,2]
[312778467,1706208646662,-1292.81444205,0.00057299,2]
[312778472,1706208646682,-500.0,0.0005589,120]
[312778474,1706208646693,-149.1135,0.00057299,2]
[312778477,1706208646704,-91173.2043196,0.00057299,2]
[312778479,1706208646715,-13901.05655188,0.00057299,2]
[312778481,1706208646727,-1296.14478647,0.00057299,2]
[312778484,1706208646742,-500.0,0.00056438,120]
[312778485,1706208646751,-1256.88242162,0.00057299,2]
[312779430,1706209161753,153.44,0.00019968,2]
[312779432,1706209391522,150.0,0.00021459,2]
[312779433,1706209391544,150.0,0.00021459,2]
[312779434,1706209391565,150.0,0.00021459,2]
[312779435,1706209391585,150.0,0.00021459,2]
[312779436,1706209391605,150.0,0.00021459,2]
[312779437,1706209391625,150.0,0.00021459,2]
[312779438,1706209391645,150.0,0.00021459,2]
[312779439,1706209391665,267.76783536,0.00021459,2]
[312779440,1706209391689,1135.55,0.00021459,2]
[312779441,1706209391715,9966.84216464,0.00021459,2]
[312779442,1706209591317,150.0,0.00021481,2]
[312779443,1706209591340,150.0,0.00021481,2]
[312779444,1706209591363,150.0,0.00021481,2]
[312779445,1706209591383,150.0,0.00021481,2]
[312779446,1706209591404,150.0,0.00021481,2]
[312779447,1706209591426,150.0,0.00021481,2]
[312779448,1706209591449,133.91,0.00021481,2]
[312779449,1706209679982,150.0,0.00021473,2]
[312779450,1706209680003,26.74,0.00021473,2]
[312779451,1706209691292,150.0,0.00019509,2]
[312779452,1706209691313,5.5,0.00019509,2]
[312779453,1706209705572,607.28,0.00021427,2]
[312779456,1706209729702,863.26,0.00021427,2]
[312779459,1706209743496,-247.42374992,0.00021683,2]
[312779460,1706209743517,-162.84,0.00021684,2]
[312779461,1706209743537,-2479.05852191,0.00021685,2]
[312779462,1706209743559,-158.84127217,0.00021686,2]
[312779463,1706209743579,-2591.33003444,0.00021784,2]
[312779464,1706209743600,-158.84127213,0.00021796,2]
[312779465,1706209743621,-162.84,0.0002181,2]
[312779466,1706209743640,-2716.12,0.0002181,2]
[312779467,1706209743660,-1318.04,0.00021886,2]
[312779468,1706209743680,-158.84127213,0.00021907,2]
[312779469,1706209743699,-499.99,0.00021907,2]
[312779470,1706209743719,-162.84,0.00021935,2]
[312779471,1706209743739,-176.54,0.00022,2]
[312779472,1706209743758,-239.24088123,0.00022,2]
[312779473,1706209744571,1551.96,0.0002148,2]
[312779474,1706209772785,-158.84127213,0.00022017,2]
[312779475,1706209772809,-162.84,0.00022061,2]
[312779476,1706209772831,-2475.11552595,0.00022082,2]
[312779477,1706209772854,-158.84127213,0.00022127,2]
[312779478,1706209772877,-162.84,0.00022187,2]
[312779479,1706209772899,-250.0,0.00022205,2]
[312779480,1706209772923,-158.84127213,0.00022238,2]
[312779481,1706209772946,-162.84,0.00022312,2]
[312779482,1706209772971,-158.84127213,0.00022348,2]
[312779483,1706209772994,-3359.7,0.00022414,2]
[312779484,1706209773018,-162.84,0.00022438,2]
[312779485,1706209773043,-158.84127213,0.00022459,2]
[312779486,1706209773065,-247.42374992,0.00022537,2]
[312779487,1706209773087,-150.99,0.00022542,2]
[312779488,1706209773109,-176.54,0.00022548,2]
[312779489,1706209773132,-162.84,0.00022563,2]
[312779490,1706209773155,-158.84127213,0.00022569,2]
[312779491,1706209773177,-2526.70299999,0.00022657,2]
[312779492,1706209773200,-383.20087159,0.00022666,2]
[312779493,1706209773223,-1000.0,0.00022666,2]
[312779494,1706209773245,-4878.33221584,0.00022667,2]
[312779505,1706209831669,-246.50870517,0.00022537,2]
[312779506,1706209831680,-332.37988173,0.00022666,2]
[312779507,1706209831738,-547.9993307,0.00022666,2]
[312779508,1706209831750,-2314.34224886,0.00022666,2]
[312779509,1706209831759,-2564.86048728,0.00022667,2]
[312779510,1706209831770,-2073.75887934,0.00022667,2]
[312779511,1706209831800,-467.8057218,0.00022667,2]
[312779512,1706209831815,-89442.29809574,0.00022667,2]
[312779513,1706209831825,-1000.0,0.00022667,2]
[312779514,1706209831835,-565.80556602,0.00022668,2]
[312779515,1706209831845,-463.31653347,0.00022668,2]
[312779516,1706209831856,-185.29686818,0.00022668,2]
[312779517,1706209831866,-158.84127213,0.00022679,2]
[312779518,1706209831877,-162.84,0.00022689,2]
[312779519,1706209831887,-1318.04,0.00022696,2]
[312779520,1706209831896,-463.3165334,0.00022709,2]
[312779521,1706209831906,-463.3165334,0.0002275,2]
[312779522,1706209831915,-1401.8049369,0.00022765,2]
[312779524,1706209831925,-407.30005052,0.00022765,2]
[312779526,1706209831934,-529.84927836,0.00022766,2]
[312779528,1706209831944,-4276.78305022,0.00022766,2]
[312779529,1706209831953,-1486.19,0.00022766,2]
[312779530,1706209831963,-2218.5,0.00022766,2]
[312779531,1706209831972,-1635.74,0.00022766,2]
[312779532,1706209831981,-191294.9755539,0.00022767,2]
[312779533,1706209831997,-415.03901403,0.00022767,2]
[312779534,1706209832008,-639.29147661,0.00022767,2]
[312779535,1706209832019,-389852.75907432,0.00022767,2]
[312779536,1706209832031,-281.28534164,0.00022768,2]
[312779537,1706209832041,-11782.39319426,0.00022768,2]
[312779538,1706209832050,-155.0,0.00022768,2]
[312779539,1706209832062,-150.99,0.00022768,2]
[312779540,1706209832072,-185.29686816,0.00022784,2]
[312779541,1706209832082,-158.84127213,0.0002279,2]
[312779542,1706209832091,-463.3165334,0.00022791,2]
[312779543,1706209832100,-162.84,0.00022814,2]
[312779544,1706209832110,-463.3165334,0.00022832,2]
[312779545,1706209832121,-463.3165334,0.00022873,2]
[312779546,1706209832131,-1443.00195716,0.00022899,2]
[312779547,1706209832140,-1443.00195714,0.00022899,2]
[312779548,1706209832150,-1443.00195714,0.00022899,2]
[312779549,1706209832160,-1443.00195714,0.00022899,2]
[312779550,1706209832169,-1443.00195714,0.00022899,2]
[312779551,1706209832178,-1443.00195714,0.00022899,2]
[312779552,1706209832188,-1443.00195714,0.000229,2]
[312779553,1706209832198,-1443.00195714,0.000229,2]
[312779554,1706209832208,-1443.00195714,0.000229,2]
[312779555,1706209832218,-1443.00195714,0.000229,2]
[312779556,1706209832227,-1443.00195714,0.000229,2]
[312779557,1706209832237,-172673.26539706,0.000229,2]
[312779567,1706209837664,-15658.40951582,0.000229,2]
[312779568,1706209837678,-169492.13814873,0.000229,2]
[312779569,1706209837687,-1443.00195714,0.000229,2]
[312779570,1706209837697,-158.84127213,0.000229,2]
[312779571,1706209837708,-185.29686816,0.000229,2]
[312779572,1706209837719,-161.75423965,0.000229,2]
[312779573,1706209837728,-4653.26731427,0.000229,2]
[312779574,1706209837737,-1357.07315556,0.000229,6]
[312779575,1706209837747,-565.80556596,0.00022912,2]
[312779576,1706209837757,-463.3165334,0.00022914,2]
[312779577,1706209837766,-463.3165334,0.00022955,2]
[312779578,1706209837775,-419.11443701,0.00022987,2]
[312779579,1706209837786,-1256.24889353,0.00022998,2]
[312779580,1706209837795,-698.04764279,0.00022998,2]
[312779581,1706209837805,-3445.88486767,0.00022998,2]
[312779582,1706209837816,-155.22013602,0.00022998,2]
[312779583,1706209837825,-3619.12864015,0.00022998,2]
[312779584,1706209837834,-1485.51430148,0.00022998,2]
[312779585,1706209837843,-155.11987022,0.00022998,2]
[312779586,1706209837852,-155.0,0.00022998,2]
[312779587,1706209837862,-385.5449845,0.00022998,2]
[312779588,1706209837871,-376.78302695,0.00022998,2]
[312779589,1706209837881,-1000.0,0.00022998,2]
[312779590,1706209837891,-155.41027789,0.00022999,2]
[312779591,1706209837900,-6162.74846861,0.00022999,2]
[312779592,1706209837909,-485.92663854,0.00022999,2]
[312779593,1706209837918,-500.0,0.00022999,2]
[312779594,1706209837928,-500.0,0.00022999,2]
[312779595,1706209837937,-500.0,0.00022999,2]
[312779596,1706209837946,-634.84141173,0.00022999,2]
[312779597,1706209837955,-500.0,0.00022999,2]
[312779598,1706209837964,-500.0,0.00022999,2]
[312779599,1706209837973,-500.0,0.00022999,2]
[312779600,1706209837984,-500.0,0.00022999,2]
[312779601,1706209837998,-500.0,0.00022999,2]
[312779602,1706209838007,-319.33557075,0.00022999,2]
[312779603,1706209838017,-500.0,0.00022999,2]
[312779604,1706209838027,-313.79626237,0.00022999,2]
[312779605,1706209838036,-500.0,0.00022999,2]
[312779606,1706209838045,-337.45218469,0.00022999,2]
[312779607,1706209838054,-500.0,0.00022999,2]
[312779610,1706209838065,-500.0,0.00022999,2]
[312779613,1706209838075,-500.0,0.00022999,2]
[312779615,1706209838086,-500.0,0.00022999,2]
[312779618,1706209838095,-500.0,0.00022999,2]
[312779619,1706209838104,-500.0,0.00022999,2]
[312779622,1706209838114,-500.0,0.00022999,2]
[312779624,1706209838123,-500.0,0.00022999,2]
[312779626,1706209838132,-500.0,0.00022999,2]
[312779628,1706209838141,-500.0,0.00022999,2]
[312779630,1706209838150,-500.0,0.00022999,2]
[312779632,1706209838159,-500.0,0.00022999,2]
[312779634,1706209838168,-500.0,0.00022999,2]
[312779636,1706209838177,-500.0,0.00022999,2]
[312779637,1706209838187,-367.99076424,0.00022999,2]
[312779639,1706209838197,-356.45496223,0.00022999,2]
[312779641,1706209838206,-500.0,0.00022999,2]
[312779643,1706209838216,-500.0,0.00022999,2]
[312779645,1706209838225,-500.0,0.00022999,2]
[312779648,1706209838235,-500.0,0.00022999,2]
[312779650,1706209838244,-500.0,0.00022999,2]
[312779652,1706209838253,-500.0,0.00022999,2]
[312779654,1706209838263,-500.0,0.00022999,2]
[312779656,1706209838272,-500.0,0.00022999,2]
[312779657,1706209838281,-500.0,0.00022999,2]
[312779660,1706209838291,-500.0,0.00022999,2]
[312779662,1706209838300,-500.0,0.00022999,2]
[312779663,1706209838309,-500.0,0.00022999,2]
[312779666,1706209838321,-500.0,0.00022999,2]
[312779668,1706209838331,-550.83459276,0.00022999,2]
[312779670,1706209838341,-500.0,0.00022999,2]
[312779672,1706209838350,-150.71721802,0.00022999,2]
[312779674,1706209838359,-728.88370954,0.00023,2]
[312779676,1706209838368,-16632232.80198864,0.00023,2]
[312779678,1706209838378,-19156.27488788,0.00023,2]
[312779680,1706209838387,-4292133.88931739,0.00023,2]
[312779694,1706209838508,-537.7807874,0.00023,2]
[312779696,1706209838520,-301.06218014,0.00023,2]
[312779918,1706209843805,-140555.34060144,0.00023,2]
[312779921,1706209843983,-412171.43114707,0.00023,2]
[312779922,1706209843999,-86668.28356823,0.00023,2]
[312779923,1706209844010,-842.97427121,0.00023,2]
[312779924,1706209844050,-420.46004682,0.00023,2]